bitfinex/quotes_ETHUSD_20251107
["timestamp","ask_amount","ask_price","bid_price","bid_amount"]
[1762529202211,0.005,3319.9,3318.5,0.115]
[1762529202390,0.4621,3319.9,3318.9,3.41855049]
[1762529202591,0.1919,3319.1,3318.9,0.405504]
[1762529202929,0.4571,3319.6,3318.9,0.405504]
[1762529203131,0.005,3319.9,3318.9,0.43563446]
[1762529203434,3.47424254,3319.9,3318.9,4.67826249]
[1762529203615,0.4621,3319.9,3318.9,0.405504]
[1762529203800,3.20476884,3319.1,3318.9,0.405504]
[1762529204000,0.005,3319.9,3318.9,3.41855049]
[1762529204001,0.4571,3319.6,3318.9,3.41855049]
[1762529204203,0.005,3319.9,3318.9,3.41855049]
[1762529204528,0.4571,3319.6,3318.9,0.405504]
[1762529204729,0.4571,3319.6,3318.9,3.41855049]
[1762529204929,0.1919,3319.1,3318.9,0.405504]
[1762529205131,0.4571,3319.6,3318.9,3.41855049]
[1762529205331,0.005,3319.9,3318.9,4.06172492]
[1762529205789,0.4571,3319.7,3318.9,1.04867843]
[1762529205991,0.4571,3319.7,3318.4,0.59775843]
[1762529205992,3.46945141,3319.7,3318.4,0.59775843]
[1762529206231,0.1919,3319.1,3318.4,1.259712]
[1762529206396,3.0131225,3318.9,3317.7,0.115]
[1762529206587,0.0039746,3319.0,3317.7,0.947]
[1762529206790,0.4610746,3319.0,3317.7,0.947]
[1762529206991,0.4610746,3319.0,3317.9,1.259712]
[1762529207325,0.4571,3318.9,3317.3,0.115]
[1762529208153,0.4571,3318.9,3318.4,3.01347938]
[1762529208367,0.4571,3318.9,3318.5,0.405504]
[1762529208548,0.0039746,3319.0,3318.9,3.41855049]
[1762529209241,0.0039746,3319.0,3318.9,0.405504]
[1762529209762,0.0039746,3319.0,3318.9,3.56895049]
[1762529209918,0.0039746,3319.0,3318.9,4.22716036]
[1762529210113,0.0039746,3319.0,3318.9,0.555904]
[1762529210323,3.01330322,3318.7,3317.5,0.832]
[1762529210518,0.4610746,3319.0,3316.9,0.111]
[1762529210519,0.1919,3317.6,3316.9,0.111]
[1762529210760,0.1919,3318.0,3316.4,3.57587387]
[1762529210912,0.1919,3317.9,3317.2,3.01452972]
[1762529211212,0.1919,3317.9,3316.4,0.111]
[1762529211213,0.649,3317.9,3316.4,0.111]
[1762529211415,0.1919,3317.9,3316.5,0.4496]
[1762529211615,0.4571,3318.3,3316.9,0.60188739]
[1762529211862,0.1919,3318.2,3317.0,1.259712]
[1762529212055,0.1919,3318.2,3317.0,3.0147333]
[1762529212241,0.1919,3318.6,3317.4,0.405504]
[1762529212451,0.649,3318.6,3318.0,0.405504]
[1762529212613,3.01363748,3318.3,3317.6,0.405504]
[1762529212818,3.20611648,3317.7,3317.1,0.005]
[1762529213019,3.01422715,3317.6,3317.1,0.005]
[1762529213244,0.4571,3317.6,3317.1,0.005]
[1762529213452,3.01459061,3317.2,3317.1,0.005]
[1762529213653,3.47143462,3317.5,3317.1,0.005]
[1762529213864,3.01459061,3317.2,3317.1,0.005]
[1762529214019,0.4571,3317.4,3317.1,0.005]
[1762529214214,3.01459061,3317.2,3317.1,0.005]
[1762529214444,3.01549966,3316.2,3316.1,0.005]
[1762529214653,0.1919,3316.3,3316.1,0.005]
[1762529214822,0.1919,3316.3,3315.9,0.001]
[1762529215016,3.01550898,3316.2,3315.9,0.001]
[1762529215219,3.01568154,3316.0,3315.9,0.001]
[1762529215943,3.61879966,3316.0,3315.9,0.001]
[1762529216131,3.01604536,3315.6,3315.5,0.001]
[1762529216340,0.02937881,3315.6,3314.1,0.005]
[1762529216529,3.01664975,3315.0,3314.1,0.005]
[1762529216735,3.01659324,3315.0,3314.1,0.005]
[1762529216935,1.86283012,3316.0,3314.6,3.01690882]
[1762529216936,3.47334055,3315.4,3314.6,3.01690882]
[1762529217134,3.47334055,3315.4,3314.1,0.3072489]
[1762529217135,0.4571,3315.4,3314.1,0.3072489]
[1762529217435,0.4571,3315.3,3314.1,0.3072489]
[1762529217780,0.4571,3315.3,3314.1,0.005]
[1762529217958,0.4571,3315.3,3314.7,0.405504]
[1762529218162,0.4571,3315.9,3314.2,0.405504]
[1762529218343,0.4571,3315.9,3314.1,0.4664]
[1762529218344,0.4571,3315.9,3315.0,0.405504]
[1762529218528,0.4571,3315.9,3314.1,0.005]
[1762529218529,3.01610553,3315.6,3314.1,0.005]
[1762529218730,0.63257571,3315.6,3314.1,0.005]
[1762529218937,0.4571,3315.5,3314.1,0.005]
[1762529219412,0.4571,3315.5,3314.6,3.01688142]
[1762529219587,0.4571,3315.5,3314.7,0.405504]
[1762529219588,3.01647844,3315.2,3314.7,0.405504]
[1762529219765,3.47361317,3315.1,3314.7,0.405504]
[1762529219967,0.4571,3315.8,3314.8,3.01669475]
[1762529220183,0.48647881,3315.7,3314.1,0.005]
[1762529220332,0.4571,3315.7,3315.3,0.1504]
[1762529220680,0.4571,3315.7,3315.6,0.1504]
[1762529220884,0.649,3316.3,3315.6,3.57187514]
[1762529221089,0.1919,3316.3,3315.7,0.76269151]
[1762529221240,0.1919,3316.6,3316.3,0.405504]
[1762529221436,0.1919,3316.6,3316.5,3.57113089]
[1762529221665,0.005,3316.9,3316.5,3.57113089]
[1762529221666,0.005,3316.9,3316.8,3.42045817]
[1762529221988,0.005,3316.9,3316.8,3.57085817]
[1762529222687,0.005,3316.9,3316.8,5.17171971]
[1762529222892,0.005,3316.9,3316.8,5.97134801]
[1762529223266,0.005,3316.9,3316.8,5.50994801]
[1762529223737,0.005,3316.9,3316.8,5.97134801]
[1762529223942,0.005,3316.9,3316.8,5.50994801]
[1762529224169,0.005,3316.9,3316.8,0.405504]
[1762529224393,0.005,3316.9,3316.8,3.42045817]
[1762529224595,0.005,3316.9,3316.8,0.405504]
[1762529225250,0.005,3316.9,3316.8,3.42045817]
[1762529225666,0.005,3316.9,3316.8,3.45060771]
[1762529225869,0.005,3316.9,3316.8,4.06702485]
[1762529226398,0.005,3316.9,3316.8,5.32673685]
[1762529226567,0.005,3316.9,3316.8,3.42045817]
[1762529227558,0.4559,3316.9,3315.4,0.1132]
[1762529227758,0.005,3316.9,3315.7,0.111]
[1762529228000,0.4559,3316.9,3315.9,0.405504]
[1762529228178,0.4559,3316.9,3316.4,3.42081428]
[1762529228364,0.4559,3316.9,3315.8,0.03015863]
[1762529228365,0.80296088,3316.9,3315.8,0.03015863]
[1762529228680,0.4509,3316.8,3315.0,0.1132]
[1762529228880,0.4509,3316.8,3314.5,0.1212]
[1762529228881,0.1923,3315.9,3314.5,0.1212]
[1762529229087,0.1923,3315.9,3315.4,3.0162273]
[1762529229289,0.4509,3315.8,3314.5,0.1212]
[1762529229494,0.4509,3315.8,3313.2,0.1132]
[1762529229495,0.02937881,3315.7,3314.1,0.005]
[1762529229697,0.4509,3315.8,3314.1,0.005]
[1762529229965,0.1923,3316.2,3314.6,1.259712]
[1762529230164,0.1923,3316.2,3314.3,5.91406306]
[1762529230165,0.4509,3316.8,3316.1,0.405504]
[1762529230377,0.4509,3316.8,3316.0,3.01562328]
[1762529230378,0.1923,3316.5,3316.0,3.01564647]
[1762529230591,0.4509,3316.4,3316.1,3.42109077]
[1762529230800,0.4559,3316.9,3316.5,0.405504]
[1762529230966,0.1923,3316.7,3316.6,3.42063998]
[1762529231169,0.007,3316.9,3316.8,3.01495417]
[1762529231363,0.007,3316.9,3316.8,0.405504]
[1762529231679,0.007,3316.9,3316.8,5.02222238]
[1762529231999,1e-08,3316.9,3316.8,5.50557192]
[1762529232205,0.002,3317.3,3317.2,3.42009461]
[1762529232389,0.002,3317.3,3317.2,4.67980661]
[1762529232566,0.002,3317.3,3317.2,4.83020661]
[1762529232767,0.002,3317.3,3317.2,5.6260167]
[1762529233004,0.002,3317.3,3317.2,6.1093626]
[1762529233202,0.002,3317.3,3317.2,6.0792167]
[1762529233405,0.002,3317.6,3317.5,3.41982201]
[1762529233705,0.005,3317.9,3317.5,3.41982201]
[1762529233706,0.005,3317.9,3317.5,4.67953401]
[1762529233927,0.005,3317.9,3317.8,0.555904]
[1762529234066,0.1973,3317.9,3317.8,0.555904]
[1762529234270,0.6482,3317.9,3316.8,0.34205221]
[1762529234539,0.1973,3317.9,3316.9,1.665216]
[1762529234694,0.1973,3317.9,3317.6,0.405504]
[1762529234899,0.1973,3317.9,3317.5,0.405504]
[1762529235213,0.6482,3317.9,3316.9,0.405504]
[1762529235429,0.6482,3317.9,3317.4,0.405504]
[1762529235639,0.6482,3317.9,3317.5,3.01424869]
[1762529235640,0.1973,3317.9,3317.5,3.01424869]
[1762529235938,0.005,3317.9,3317.8,3.41954945]
[1762529236152,0.005,3317.9,3317.8,4.67926145]
[1762529236500,0.002,3318.2,3318.1,3.41927694]
[1762529236713,0.002,3318.2,3318.1,4.79248894]
[1762529237037,0.0012,3318.2,3318.1,6.09635196]
[1762529238101,0.002,3318.6,3318.5,3.01340967]
[1762529238437,0.002,3318.6,3318.5,3.41891367]
[1762529238834,0.002,3318.6,3318.5,0.405504]
[1762529239019,0.4529,3318.6,3318.5,0.405504]
[1762529239225,0.002,3318.6,3318.5,0.405504]
[1762529239423,0.4529,3318.6,3315.7,0.05]
[1762529239628,0.1923,3317.8,3317.2,3.01452573]
[1762529239940,0.1923,3317.8,3316.8,3.01487347]
[1762529240144,0.1923,3317.8,3316.3,3.01540873]
[1762529240314,0.1923,3317.8,3316.4,1.259712]
[1762529240501,0.4509,3317.7,3316.4,3.01531781]
[1762529240843,0.002,3318.6,3316.7,1.259712]
[1762529241140,0.002,3318.6,3316.5,0.39114798]
[1762529241141,0.4529,3318.6,3317.5,0.405504]
[1762529241351,0.002,3318.6,3317.7,0.405504]
[1762529241517,0.002,3318.6,3317.6,0.03014227]
[1762529241518,0.002,3318.6,3318.5,0.405504]
[1762529241700,0.002,3318.6,3317.8,3.01404545]
[1762529241701,0.4509,3318.5,3316.9,1.259712]
[1762529241907,0.4509,3318.5,3317.0,0.405504]
[1762529242130,0.4509,3318.5,3317.8,0.405504]
[1762529242323,0.4509,3318.5,3316.8,1.665216]
[1762529242578,0.4509,3318.5,3317.3,0.405504]
[1762529242785,0.002,3318.6,3318.4,0.405504]
[1762529243077,0.4529,3318.6,3318.1,3.01369975]
[1762529243277,0.4529,3318.6,3317.7,0.405504]
[1762529243433,0.002,3318.6,3318.5,3.41891367]
[1762529243970,0.002,3318.6,3317.8,0.34196884]
[1762529243971,0.4529,3318.6,3317.8,0.34196884]
[1762529244176,0.4529,3318.6,3318.1,3.01375207]
[1762529244376,0.002,3318.6,3318.5,3.01340967]
[1762529244523,0.002,3318.6,3318.5,0.405504]
[1762529244939,0.002,3318.6,3318.5,3.41891367]
[1762529245723,0.002,3318.6,3318.5,0.405504]
[1762529246027,0.4529,3318.6,3317.5,1.259712]
[1762529246227,3.01341782,3318.5,3317.5,1.259712]
[1762529246428,0.34663178,3318.5,3316.9,0.831]
[1762529246637,0.34663178,3318.5,3316.5,0.36099572]
[1762529246638,0.4509,3318.4,3316.5,0.36099572]
[1762529246937,0.02937881,3318.3,3316.1,0.005]
[1762529247137,3.01537862,3318.6,3316.1,0.005]
[1762529247138,3.01422035,3317.7,3317.0,3.01472477]
[1762529247365,0.4509,3318.2,3316.1,0.005]
[1762529247366,3.01470257,3317.1,3316.1,0.005]
[1762529247568,0.1923,3316.2,3316.1,0.005]
[1762529247942,0.6432,3316.2,3316.1,3.0205906]
[1762529248134,0.1923,3316.6,3316.1,0.005]
[1762529248326,3.20749988,3316.6,3316.1,0.005]
[1762529248533,0.4509,3316.5,3316.1,0.005]
[1762529248928,3.01539568,3316.4,3316.1,0.005]
[1762529249157,0.4509,3316.5,3316.1,3.02050536]
[1762529249470,3.46621254,3316.5,3316.1,0.005]
[1762529249630,3.01549966,3316.2,3316.1,0.005]
[1762529249836,0.4509,3316.4,3316.1,0.005]
[1762529250035,0.1923,3316.6,3316.1,0.005]
[1762529250036,3.01549966,3316.2,3316.1,0.005]
[1762529250270,3.01549966,3316.2,3315.1,0.006]
[1762529250271,0.02937881,3316.2,3315.1,0.006]
[1762529250434,3.01603674,3315.7,3315.1,0.006]
[1762529250635,0.36302613,3315.7,3315.1,0.006]
[1762529250835,0.4509,3316.1,3315.1,0.006]
[1762529250836,3.46694782,3315.6,3315.1,0.006]
[1762529251070,0.4509,3315.6,3315.1,0.006]
[1762529251269,0.4509,3315.5,3315.1,0.006]
[1762529251483,3.01624515,3315.4,3315.1,0.006]
[1762529251779,3.01640926,3315.2,3315.1,0.006]
[1762529252083,0.4509,3315.3,3315.1,0.006]
[1762529252243,3.01640926,3315.2,3315.1,0.006]
[1762529252446,0.88360513,3315.9,3315.1,0.006]
[1762529252659,0.1923,3316.6,3315.1,0.411504]
[1762529252660,0.4509,3315.8,3315.1,0.411504]
[1762529252858,0.4509,3315.8,3315.3,3.01623252]
[1762529253060,0.4509,3315.8,3315.1,0.006]
[1762529253269,0.4509,3316.1,3315.3,0.405504]
[1762529253468,0.4509,3316.1,3315.4,0.405504]
[1762529253634,3.01575011,3316.0,3315.4,0.405504]
[1762529253829,0.4509,3316.1,3315.5,3.01606028]
[1762529254065,0.4509,3316.1,3315.2,0.405504]
[1762529254243,0.02937881,3316.0,3315.5,0.1504]
[1762529254549,3.16627957,3315.8,3315.2,0.1504]
[1762529254765,0.1504,3315.8,3315.2,0.1504]
[1762529254963,3.46755439,3315.7,3315.2,0.1504]
[1762529255161,0.4516,3315.7,3315.5,0.1504]
[1762529255336,0.4516,3316.4,3316.1,3.01551389]
[1762529255537,0.6431,3317.0,3316.2,0.405504]
[1762529255770,0.6431,3317.0,3316.4,0.405504]
[1762529256072,0.4516,3316.9,3316.5,3.0152172]
[1762529256274,0.4516,3316.9,3316.4,3.01529059]
[1762529256574,3.01501883,3316.8,3316.0,3.01561526]
[1762529256758,3.01501883,3316.8,3315.5,0.405504]
[1762529256759,3.01510969,3316.7,3316.1,0.405504]
[1762529257072,0.66728992,3316.8,3315.2,0.1212]
[1762529257073,0.4516,3316.8,3316.4,0.405504]
[1762529257371,0.4516,3316.8,3316.2,0.405504]
[1762529257581,0.02937881,3316.7,3315.2,0.1212]
[1762529257785,0.48097881,3316.6,3315.9,0.405504]
[1762529258073,0.48097881,3316.6,3315.9,3.0157625]
[1762529258074,0.4516,3316.6,3315.9,3.0157625]
[1762529258237,0.4516,3316.6,3315.9,0.405504]
[1762529258637,0.4516,3316.6,3316.0,0.405504]
[1762529258962,0.1915,3317.0,3316.3,3.01535005]
[1762529259162,0.1915,3317.0,3316.5,0.405504]
[1762529259493,0.4516,3316.9,3316.3,0.405504]
[1762529259702,0.1923,3317.6,3316.5,0.405504]
[1762529259703,0.6439,3317.6,3316.5,0.405504]
[1762529259917,0.6431,3317.6,3317.2,3.01451322]
[1762529260118,0.1965,3317.9,3317.2,0.405504]
[1762529260396,0.1965,3317.9,3317.8,3.41954945]
[1762529260397,0.005,3317.9,3317.8,3.41954945]
[1762529260578,0.005,3317.9,3317.8,5.35277257]
[1762529260774,0.005,3317.9,3317.8,5.32263212]
[1762529261088,0.005,3317.9,3317.8,1.665216]
[1762529261290,0.005,3317.9,3317.8,0.405504]
[1762529261663,0.4954,3317.9,3317.8,0.405504]
[1762529261883,0.005,3317.9,3317.8,0.405504]
[1762529262187,0.005,3317.9,3317.8,3.41954945]
[1762529262862,0.005,3317.9,3317.8,0.405504]
[1762529263062,0.005,3317.9,3317.8,3.41954945]
[1762529263375,0.005,3317.9,3317.8,1.04887386]
[1762529263577,0.005,3317.9,3317.8,0.405504]
[1762529263764,0.005,3317.9,3317.8,3.41954945]
[1762529263966,0.005,3317.9,3317.8,3.88674945]
[1762529264498,0.005,3317.9,3317.8,4.67926145]
[1762529264683,0.005,3317.9,3317.8,1.665216]
[1762529264883,0.005,3317.9,3317.8,4.84578305]
[1762529265085,0.005,3317.9,3317.8,1.8317376]
[1762529265287,0.4954,3317.9,3317.8,0.405504]
[1762529265499,0.4954,3317.9,3317.8,0.1504]
[1762529265701,0.4954,3317.9,3316.7,3.60371407]
[1762529265702,0.4954,3317.9,3316.7,0.405504]
[1762529265902,3.0434646,3317.8,3315.9,3.01572302]
[1762529266108,0.35388646,3317.7,3316.0,0.3015723]
[1762529266306,0.4904,3317.6,3316.8,3.01489497]
[1762529266506,0.4904,3317.6,3316.9,3.01480562]
[1762529266804,0.1842,3317.5,3316.9,3.01483915]
[1762529266989,0.1842,3317.5,3316.6,3.01510148]
[1762529267210,0.1842,3317.5,3317.4,3.01440887]
[1762529267514,0.007,3317.9,3317.3,3.01443346]
[1762529267718,0.007,3317.9,3316.5,0.4672]
[1762529267719,0.4904,3317.8,3316.8,0.405504]
[1762529268015,0.4904,3317.8,3317.1,0.405504]
[1762529268187,0.4904,3317.8,3316.9,0.405504]
[1762529268188,3.01413629,3317.7,3316.9,0.405504]
[1762529268388,3.01418983,3317.7,3316.9,0.405504]
[1762529268592,3.51138712,3317.9,3317.1,0.405504]
[1762529268914,3.51138712,3317.9,3316.0,1.5987723]
[1762529268915,0.4904,3317.8,3316.0,0.1157223]
[1762529269116,0.4904,3317.8,3316.1,0.405504]
[1762529269278,0.51977881,3317.8,3315.7,0.73829786]
[1762529269479,0.007,3317.9,3315.9,1.259712]
[1762529269727,0.007,3317.9,3317.8,3.41954945]
[1762529269879,0.007,3317.9,3317.8,4.67926145]
[1762529270303,0.007,3317.9,3317.8,4.7094019]
[1762529270680,0.007,3317.9,3317.8,4.67926145]
[1762529270885,0.007,3317.9,3317.8,1.665216]
[1762529271112,0.007,3317.9,3317.8,4.67926145]
[1762529271312,0.007,3317.9,3317.8,1.665216]
[1762529271515,0.007,3317.9,3317.8,4.67926145]
[1762529274425,0.6816,3317.9,3316.1,0.0017]
[1762529274598,0.007,3317.9,3317.8,3.01404545]
[1762529274945,0.007,3317.9,3317.8,0.405504]
[1762529275586,0.007,3317.9,3317.8,3.56994945]
[1762529275788,0.007,3317.9,3317.8,0.555904]
[1762529276010,0.007,3317.9,3317.8,3.56994945]
[1762529276636,0.007,3317.9,3317.8,3.6000899]
[1762529276934,0.007,3317.9,3317.8,3.41954945]
[1762529277127,0.007,3317.9,3317.8,4.67926145]
[1762529277944,0.1912,3317.9,3314.3,0.51689999]
[1762529278239,3.0142115,3317.7,3316.8,3.01495329]
[1762529278443,3.01428421,3317.6,3315.9,3.01575869]
[1762529278641,0.4904,3317.6,3317.1,0.405504]
[1762529278934,0.4904,3317.5,3316.8,3.01489569]
[1762529279134,0.4904,3317.5,3316.6,3.01505956]
[1762529279302,0.4904,3317.5,3316.7,3.01502728]
[1762529279500,3.01443805,3317.4,3316.7,1.259712]
[1762529279835,0.4904,3317.5,3315.8,1.259712]
[1762529280042,0.4904,3317.4,3316.8,3.01489562]
[1762529280242,0.4904,3317.4,3315.9,0.58351743]
[1762529280447,3.0151218,3316.7,3316.0,3.01567035]
[1762529280657,0.4904,3317.4,3315.7,0.001]
[1762529280859,0.4904,3317.3,3316.2,3.01547819]
[1762529281025,0.4904,3317.3,3316.0,3.01567848]
[1762529281227,0.4904,3317.8,3316.3,0.405504]
[1762529281442,0.1912,3317.9,3317.2,0.405504]
[1762529281759,0.1912,3317.9,3316.9,3.01485163]
[1762529281760,0.1912,3317.9,3317.8,0.405504]
[1762529281903,0.1912,3317.9,3315.7,0.59780399]
[1762529281904,0.4904,3317.8,3315.7,0.59780399]
[1762529282339,0.1912,3317.9,3316.6,1.259712]
[1762529282522,0.0062,3317.9,3317.8,3.41954945]
[1762529282726,0.0062,3317.9,3317.8,4.68096145]
[1762529282727,1e-08,3317.9,3317.8,4.68096145]
[1762529283342,1e-08,3317.9,3317.8,4.67926145]
[1762529283557,1e-08,3317.9,3317.8,5.44860218]
[1762529284019,1e-08,3317.9,3317.8,1.665216]
[1762529284215,1e-08,3317.9,3317.8,4.67926145]
[1762529284417,1e-08,3317.9,3317.8,1.665216]
[1762529284922,1e-08,3317.9,3317.8,3.41954945]
[1762529286246,1e-08,3317.9,3317.8,3.4513899]
[1762529286402,1e-08,3317.9,3317.8,5.4517863]
[1762529286841,1e-08,3317.9,3317.8,5.6038863]
[1762529287048,1e-08,3317.9,3317.8,5.6021863]
[1762529287912,1e-08,3317.9,3317.8,5.4517863]
[1762529288443,1e-08,3317.9,3317.8,4.67926145]
[1762529288743,0.19850001,3317.9,3316.9,1.259712]
[1762529288907,1e-08,3317.9,3317.8,3.41954945]
[1762529289107,1e-08,3317.9,3317.8,5.32263086]
[1762529291019,1e-08,3317.9,3317.8,5.35447131]
[1762529291221,1e-08,3317.9,3317.8,5.32433086]
[1762529291423,1e-08,3317.9,3317.8,1.665216]
[1762529291617,1e-08,3317.9,3317.8,4.67926145]
[1762529291949,0.49010001,3317.9,3316.1,0.006]
[1762529292120,0.1985,3317.5,3316.1,0.006]
[1762529292463,0.1985,3317.5,3316.3,1.259712]
[1762529292609,0.1985,3317.5,3316.2,1.259712]
[1762529292610,0.1985,3317.5,3316.4,0.2519424]
[1762529292809,3.70297414,3317.5,3316.9,3.01485518]
[1762529293118,0.6886,3317.5,3317.4,3.01440887]
[1762529293319,0.1985,3317.5,3316.5,3.01522689]
[1762529293634,0.1985,3317.5,3316.2,0.828]
[1762529293635,0.1985,3317.5,3317.4,3.01440887]
[1762529293948,0.1985,3317.5,3317.4,0.405504]
[1762529294109,0.1985,3317.5,3316.2,0.828]
[1762529294110,0.6886,3317.5,3316.0,1.259712]
[1762529294306,0.6886,3317.5,3316.2,0.187603]
[1762529294549,0.19850001,3317.9,3317.7,3.01407319]
[1762529294729,0.4901,3317.8,3316.3,0.405504]
[1762529295066,0.02937881,3317.7,3316.7,3.01504458]
[1762529295273,0.1985,3316.3,3316.1,0.006]
[1762529295745,0.1985,3316.3,3316.2,3.01549966]
[1762529295954,0.1985,3317.0,3316.9,3.01486327]
[1762529296244,0.4901,3317.3,3316.1,0.006]
[1762529296433,0.4901,3317.3,3316.6,0.405504]
[1762529296434,3.50460979,3317.3,3316.6,0.405504]
[1762529296637,3.50460979,3317.3,3316.1,1.265712]
[1762529296638,0.6886,3317.2,3316.1,0.006]
[1762529296818,3.01482804,3317.0,3316.1,0.006]
[1762529297019,3.50481179,3317.1,3316.2,3.01549966]
[1762529297206,0.4901,3317.1,3316.1,0.006]
[1762529297432,0.4901,3317.0,3316.2,3.01549363]
[1762529297635,0.4901,3317.0,3316.3,0.405504]
[1762529297822,0.4901,3317.0,3316.7,0.1504]
[1762529298021,3.01495417,3316.8,3316.7,0.1504]
[1762529298224,3.87527368,3317.0,3316.1,0.006]
[1762529298581,3.87527368,3317.0,3315.6,0.1494]
[1762529298582,3.01595439,3315.7,3315.6,0.1494]
[1762529298786,1.1672555,3316.9,3315.1,0.006]
[1762529298787,0.1985,3315.8,3315.1,0.006]
[1762529298967,3.01640926,3315.2,3315.1,0.006]
[1762529299164,0.51992655,3315.8,3313.7,0.1911]
[1762529299165,0.4901,3315.7,3313.7,0.1911]
[1762529299392,0.4901,3315.7,3314.3,1.259712]
[1762529299543,0.4901,3315.7,3314.5,3.01697948]
[1762529299750,0.4901,3315.7,3315.1,3.01643874]
[1762529299952,0.4901,3315.7,3314.1,0.005]
[1762529300151,0.4901,3315.7,3315.3,3.01623916]
[1762529300359,0.1985,3315.8,3315.3,0.30162392]
[1762529300560,0.4901,3317.0,3316.0,3.01560788]
[1762529300763,0.4901,3317.0,3316.3,0.405504]
[1762529300963,0.4901,3317.7,3317.1,0.405504]
[1762529301162,3.01533376,3318.6,3317.1,0.405504]
[1762529301388,0.4921,3318.3,3317.2,0.0301459]
[1762529301562,1e-08,3317.9,3317.8,3.41954945]
[1762529301755,0.20350001,3317.9,3317.8,0.405504]
[1762529301957,0.005,3316.9,3316.6,0.405504]
[1762529302154,0.005,3316.9,3316.8,3.42045817]
[1762529302362,0.005,3316.9,3316.5,0.405504]
[1762529302580,0.005,3316.9,3316.8,4.68017017]
[1762529302778,0.005,3316.9,3316.8,5.44970079]
[1762529303264,0.00500001,3317.9,3317.8,3.41954945]
[1762529303774,0.002,3318.3,3318.2,3.41918611]
[1762529304419,0.002,3318.3,3318.2,0.405504]
[1762529304788,0.002,3318.3,3318.2,3.41918611]
[1762529304994,0.002,3318.3,3318.2,5.47831102]
[1762529305388,0.0012,3318.3,3318.2,0.405504]
[1762529305621,0.0012,3318.3,3318.2,3.41918611]
[1762529306109,0.0012,3318.3,3318.2,4.67889811]
[1762529306427,0.0012,3318.3,3318.2,1.665216]
[1762529306724,0.0012,3318.3,3318.2,4.67889811]
[1762529307402,0.0012,3318.3,3318.2,1.665216]
[1762529309286,0.0012,3318.3,3318.2,0.555904]
[1762529309489,0.0012,3318.3,3317.6,1.87304587]
[1762529309490,3.01386105,3318.1,3316.6,3.01509218]
[1762529309855,0.1985,3316.9,3316.0,7.8799525]
[1762529310035,0.1985,3316.9,3315.8,3.01582241]
[1762529310222,0.1985,3316.9,3316.7,3.01498307]
[1762529310423,0.1985,3316.9,3315.7,0.0646]
[1762529310424,0.1985,3316.9,3316.1,1.264712]
[1762529310623,0.4901,3317.3,3316.1,1.264712]
[1762529310624,0.1985,3317.2,3316.1,1.264712]
[1762529310823,0.0012,3318.3,3316.1,1.264712]
[1762529310824,0.1985,3317.7,3316.5,7.0529525]
[1762529311049,3.01423841,3317.6,3316.5,7.0529525]
[1762529311238,0.4901,3317.6,3317.0,3.01470708]
[1762529311440,0.4901,3317.6,3317.3,3.01448912]
[1762529311640,0.1985,3317.7,3316.6,1.259712]
[1762529311855,0.0012,3318.3,3317.6,3.01422715]
[1762529312152,0.0012,3318.3,3318.2,3.41918611]
[1762529312749,0.0012,3318.3,3318.2,0.405504]
[1762529313116,0.0012,3318.3,3318.2,3.41918611]
[1762529313315,0.0012,3318.3,3318.2,11.92295061]
[1762529313534,0.0012,3318.3,3318.2,13.42928107]
[1762529313818,0.0012,3318.3,3318.2,6.18522857]
[1762529314115,0.0059746,3319.0,3318.2,6.18522857]
[1762529314116,1e-08,3319.0,3318.9,3.41855049]
[1762529314331,1e-08,3319.0,3318.9,11.73121499]
[1762529314558,0.002,3319.3,3319.2,4.67799016]
[1762529315356,0.002,3319.3,3319.2,4.86909016]
[1762529315815,0.005,3320.9,3319.8,3.01222965]
[1762529316016,3.01156158,3320.6,3319.8,0.405504]
[1762529316217,0.1983,3320.3,3319.8,0.405504]
[1762529316460,0.005,3320.9,3319.8,3.41773365]
[1762529316645,0.005,3320.9,3319.8,3.95235468]
[1762529316845,0.005,3320.9,3319.8,5.21206668]
[1762529317156,0.005,3320.9,3319.8,5.40316668]
[1762529317578,0.005,3320.9,3319.8,5.21206668]
[1762529317730,0.005,3320.9,3319.1,0.826]
[1762529317731,0.6895,3320.3,3319.2,1.259712]
[1762529317929,0.6895,3320.3,3319.8,3.01222965]
[1762529318178,0.4912,3320.8,3319.8,3.41773365]
[1762529318330,0.1983,3320.3,3319.8,3.41773365]
[1762529318527,0.4912,3320.6,3319.8,3.41773365]
[1762529318832,0.005,3320.9,3319.8,4.67744565]
[1762529319227,0.005,3320.9,3319.8,4.86854565]
[1762529319435,0.00200001,3319.9,3319.8,6.38483313]
[1762529319627,0.00200001,3319.9,3319.8,6.04333313]
[1762529319854,0.00200001,3319.9,3319.8,1.665216]
[1762529320038,0.00200001,3319.9,3319.8,4.67744565]
[1762529320228,0.00200001,3319.9,3319.8,0.405504]
[1762529320778,0.00200001,3319.9,3318.2,7.0529525]
[1762529320779,0.46110001,3319.9,3318.2,7.0529525]
[1762529320955,0.46110001,3319.9,3317.6,3.01422715]
[1762529320956,0.1967,3319.1,3317.6,3.01422715]
[1762529321156,0.1967,3319.1,3317.7,1.00671797]
[1762529321157,3.01303625,3319.0,3317.7,1.00671797]
[1762529321358,0.02937881,3318.9,3317.2,7.0529525]
[1762529321657,0.4591,3319.0,3317.2,7.0529525]
[1762529321658,3.01377375,3318.1,3317.3,3.01449974]
[1762529321858,0.4591,3318.0,3317.1,0.005]
[1762529322249,0.1967,3317.9,3317.1,0.005]
[1762529322633,0.1967,3317.9,3317.6,3.01416524]
[1762529322930,0.6558,3317.9,3317.2,3.01450222]
[1762529323146,0.6558,3317.9,3317.1,0.005]
[1762529323350,0.4591,3317.8,3317.1,0.005]